fUSD/lending_fUSD_20260315
["ID","MTS","AMOUNT","RATE_DAILY","PERIOD"]
[408409419,1773573050381,-153.32820558,0.00040821,2]
[408409420,1773573050390,-188.85406912,0.00040821,2]
[408409421,1773573050399,-182.64780844,0.00040821,2]
[408409422,1773573050409,-184.75152126,0.00040821,2]
[408409423,1773573050419,-190.35794461,0.00040821,2]
[408409424,1773573050429,-6055.72,0.00040821,2]
[408409425,1773573050438,-6055.72,0.00040821,2]
[408409426,1773573050447,-6055.72,0.00040821,2]
[408409427,1773573050456,-6055.72,0.00040821,2]
[408409428,1773573050465,-6055.72,0.00040821,2]
[408409429,1773573050474,-6055.72,0.00040821,2]
[408409430,1773573050483,-6055.72,0.00040821,2]
[408409431,1773573050493,-6055.72,0.00040821,2]
[408409432,1773573050503,-6055.72,0.00040821,2]
[408409433,1773573050512,-6055.72,0.00040821,2]
[408409434,1773573050522,-6055.72,0.00040821,2]
[408409435,1773573050532,-6055.72,0.00040821,2]
[408409436,1773573050542,-6055.72,0.00040821,2]
[408409437,1773573050555,-6055.72,0.00040821,2]
[408409438,1773573050565,-6055.72,0.00040821,2]
[408409439,1773573050574,-6055.72,0.00040821,2]
[408409440,1773573050585,-6055.72,0.00040821,2]
[408409441,1773573050596,-6055.72,0.00040821,2]
[408409442,1773573050606,-6055.72,0.00040821,2]
[408409443,1773573050617,-6055.72,0.00040821,2]
[408409444,1773573050627,-6055.72,0.00040821,2]
[408409445,1773573050638,-6055.72,0.00040821,2]
[408409446,1773573050647,-6055.72,0.00040821,2]
[408409447,1773573050657,-6055.83325398,0.00040821,2]
[408409448,1773573050667,-500.0,0.00040821,2]
[408409449,1773573050677,-500.0,0.00040821,2]
[408409450,1773573050687,-500.0,0.00040821,2]
[408409451,1773573050696,-172.4006273,0.00040821,2]
[408409452,1773573050705,-500.0,0.00040821,2]
[408409453,1773573050717,-500.0,0.00040821,2]
[408409454,1773573050726,-536.32061041,0.00040821,2]
[408409455,1773573050737,-158.7945886,0.00040821,2]
[408409456,1773573050748,-150.60096109,0.00040821,2]
[408409457,1773573050759,-189.43564541,0.00040821,2]
[408409458,1773573050768,-182.339934,0.00040821,120]
[408409459,1773573050778,-321.12765153,0.00040821,2]
[408409460,1773573050787,-500.0,0.00040821,2]
[408409461,1773573050797,-500.0,0.00040821,2]
[408409462,1773573050806,-500.0,0.00040821,2]
[408409463,1773573050816,-500.0,0.00040821,2]
[408409464,1773573050826,-500.0,0.00040821,2]
[408409465,1773573050836,-500.0,0.00040821,2]
[408409466,1773573050846,-500.0,0.00040821,2]
[408409467,1773573050856,-500.0,0.00040821,2]
[408409468,1773573050866,-500.0,0.00040821,2]
[408409469,1773573050877,-500.0,0.00040821,2]
[408409470,1773573050887,-500.0,0.00040821,2]
[408409471,1773573050896,-440.96103482,0.00040821,2]
[408409472,1773573050906,-500.0,0.00040821,2]
[408409473,1773573050916,-164.05436096,0.00040821,2]
[408409474,1773573050926,-500.0,0.00040821,2]
[408409475,1773573050935,-271.93724377,0.00040821,2]
[408409476,1773573050945,-500.0,0.00040821,2]
[408409477,1773573050954,-169.60923278,0.00040821,2]
[408409478,1773573050976,-223.17510497,0.00040821,2]
[408409479,1773573050985,-294.60928452,0.00040821,2]
[408409480,1773573050994,-194.68629439,0.00040821,2]
[408409481,1773573051004,-172.2764784,0.00040821,2]
[408409482,1773573051014,-747.2,0.00040821,2]
[408409483,1773573051023,-747.2,0.00040821,2]
[408409484,1773573051034,-179.02616473,0.00040821,2]
[408409485,1773573051045,-747.2,0.00040821,2]
[408409486,1773573051055,-747.2,0.00040821,2]
[408409487,1773573051065,-185.6093357,0.00040821,2]
[408409488,1773573051075,-747.2,0.00040821,2]
[408409489,1773573051084,-747.2,0.00040821,2]
[408409490,1773573051093,-747.2,0.00040821,2]
[408409491,1773573051104,-747.2,0.00040821,2]
[408409492,1773573051113,-747.2,0.00040821,2]
[408409493,1773573051123,-747.2,0.00040821,2]
[408409494,1773573051133,-747.2,0.00040821,2]
[408409495,1773573051143,-747.2,0.00040821,2]
[408409496,1773573051153,-747.2,0.00040821,2]
[408409497,1773573051162,-747.2,0.00040821,2]
[408409498,1773573051172,-747.2,0.00040821,2]
[408409499,1773573051297,-747.2,0.00040821,2]
[408409500,1773573051320,-747.2,0.00040821,2]
[408409501,1773573051330,-747.2,0.00040821,2]
[408409502,1773573051339,-747.2,0.00040821,2]
[408409503,1773573051349,-747.2,0.00040821,2]
[408409504,1773573051358,-747.2,0.00040821,2]
[408409505,1773573051368,-151.0,0.00040821,7]
[408409506,1773573051378,-747.2,0.00040821,2]
[408409507,1773573051388,-747.2,0.00040821,2]
[408409508,1773573051397,-747.28717934,0.00040821,2]
[408409509,1773573051407,-165.80008881,0.00040821,2]
[408409510,1773573051416,-238.11903046,0.00040821,2]
[408409511,1773573051426,-169.30047091,0.00040821,2]
[408409512,1773573051435,-256.46374412,0.00040821,2]
[408409513,1773573051445,-409.85145004,0.00040821,2]
[408409514,1773573051454,-206.94703039,0.00040821,2]
[408409515,1773573051463,-553.12197255,0.00040821,2]
[408409516,1773573051473,-154.9419752,0.00040821,2]
[408409517,1773573051483,-175.66912457,0.00040821,2]
[408409518,1773573051492,-151.0,0.00040821,120]
[408409519,1773573051503,-264.34498359,0.00040821,2]
[408409520,1773573051513,-230.03790772,0.00040821,2]
[408409521,1773573051523,-156.84263744,0.00040821,2]
[408409522,1773573051533,-836.31,0.00040821,2]
[408409523,1773573051543,-836.31,0.00040821,2]
[408409524,1773573051552,-836.31,0.00040821,2]
[408409525,1773573051562,-836.31,0.00040821,2]
[408409526,1773573051572,-164.54039286,0.00040821,2]
[408409527,1773573051582,-836.31,0.00040821,2]
[408409528,1773573051592,-836.31,0.00040821,2]
[408409529,1773573051602,-836.31,0.00040821,2]
[408409530,1773573051612,-836.31,0.00040821,2]
[408409531,1773573051621,-836.31,0.00040821,2]
[408409532,1773573051631,-836.31,0.00040821,2]
[408409533,1773573051640,-836.31,0.00040821,2]
[408409534,1773573051650,-836.31,0.00040821,2]
[408409535,1773573051660,-836.31,0.00040821,2]
[408409536,1773573051669,-836.31,0.00040821,2]
[408409537,1773573051679,-500.0,0.00040821,2]
[408409538,1773573051688,-836.31,0.00040821,2]
[408409539,1773573051697,-500.0,0.00040821,2]
[408409540,1773573051707,-836.31,0.00040821,2]
[408409541,1773573051716,-500.0,0.00040821,2]
[408409542,1773573051726,-836.31,0.00040821,2]
[408409543,1773573051735,-500.0,0.00040821,2]
[408409544,1773573051745,-836.31,0.00040821,2]
[408409545,1773573051754,-500.0,0.00040821,2]
[408409546,1773573051764,-836.31,0.00040821,2]
[408409547,1773573051773,-500.0,0.00040821,2]
[408409548,1773573051783,-500.0,0.00040821,2]
[408409549,1773573051792,-836.31,0.00040821,2]
[408409550,1773573051801,-500.0,0.00040821,2]
[408409551,1773573051810,-836.31,0.00040821,2]
[408409552,1773573051819,-836.31,0.00040821,2]
[408409553,1773573051828,-500.0,0.00040821,2]
[408409554,1773573051837,-836.31,0.00040821,2]
[408409555,1773573051846,-500.0,0.00040821,2]
[408409556,1773573051855,-836.52175187,0.00040821,2]
[408409557,1773573051865,-500.0,0.00040821,2]
[408409558,1773573051874,-168.55374989,0.00040821,2]
[408409559,1773573051886,-240.58768846,0.00040821,2]
[408409560,1773573051896,-152.14790811,0.00040821,2]
[408409561,1773573051905,-566.11786591,0.00040821,2]
[408409562,1773573051915,-270.93438825,0.00040821,2]
[408409563,1773573051924,-217.69292742,0.00040821,2]
[408409564,1773573051934,-151.00001,0.00040821,120]
[408409565,1773573051944,-202.8497896,0.00040821,2]
[408409566,1773573051953,-6251.02,0.00040821,2]
[408409567,1773573051964,-6251.02,0.00040821,2]
[408409568,1773573051977,-6251.02,0.00040821,2]
[408409569,1773573051986,-6251.02,0.00040821,2]
[408409570,1773573051995,-6251.02,0.00040821,2]
[408409571,1773573052005,-6251.02,0.00040821,2]
[408409572,1773573052015,-6251.02,0.00040821,2]
[408409573,1773573052025,-6251.02,0.00040821,2]
[408409574,1773573052034,-6251.02,0.00040821,2]
[408409575,1773573052044,-6251.02,0.00040821,2]
[408409576,1773573052053,-6251.02,0.00040821,2]
[408409577,1773573052062,-6251.02,0.00040821,2]
[408409578,1773573052071,-6251.02,0.00040821,2]
[408409579,1773573052081,-6251.02,0.00040821,2]
[408409580,1773573052091,-6251.02,0.00040821,2]
[408409581,1773573052100,-6251.02,0.00040821,2]
[408409582,1773573052110,-6251.02,0.00040821,2]
[408409583,1773573052119,-6251.02,0.00040821,2]
[408409584,1773573052129,-6251.02,0.00040821,2]
[408409585,1773573052139,-6251.02,0.00040821,2]
[408409586,1773573052148,-6251.02,0.00040821,2]
[408409587,1773573052157,-6251.02,0.00040821,2]
[408409588,1773573052166,-6251.02,0.00040821,2]
[408409589,1773573052175,-6251.08099608,0.00040821,2]
[408409590,1773573052185,-476.41274124,0.00040821,2]
[408409591,1773573052194,-237.97776204,0.00040821,2]
[408409592,1773573052204,-152.38437748,0.00040821,2]
[408409593,1773573052214,-203.30087002,0.00040821,2]
[408409594,1773573052224,-153.39457135,0.00040821,2]
[408409595,1773573052233,-151.0,0.00040821,28]
[408409596,1773573052242,-151.0,0.00040821,28]
[408409597,1773573052252,-151.0,0.00040821,28]
[408409598,1773573052261,-6960.72,0.00040821,2]
[408409599,1773573052270,-6960.72,0.00040821,2]
[408409600,1773573052279,-151.0,0.00040821,120]
[408409601,1773573052289,-153.85976702,0.00040821,2]
[408409602,1773573052298,-6960.72,0.00040821,2]
[408409603,1773573052308,-163.17821863,0.00040821,2]
[408409604,1773573052317,-6960.72,0.00040821,2]
[408409605,1773573052326,-6960.72,0.00040821,2]
[408409606,1773573052335,-6960.72,0.00040821,2]
[408409607,1773573052344,-6960.72,0.00040821,2]
[408409608,1773573052354,-6960.72,0.00040821,2]
[408409609,1773573052363,-151.0,0.00040821,120]
[408409610,1773573052373,-6960.72,0.00040821,2]
[408409611,1773573052382,-6960.72,0.00040821,2]
[408409612,1773573052391,-6960.72,0.00040821,2]
[408409613,1773573052403,-6960.72,0.00040821,2]
[408409614,1773573052416,-228.24111253,0.00040821,2]
[408409615,1773573052425,-6960.72,0.00040821,2]
[408409616,1773573052435,-6960.72,0.00040821,2]
[408409617,1773573052444,-151.0,0.00040821,120]
[408409618,1773573052454,-6960.72,0.00040821,2]
[408409619,1773573052463,-6960.72,0.00040821,2]
[408409620,1773573052473,-579.76189079,0.00040821,2]
[408409621,1773573052483,-6960.72,0.00040821,2]
[408409622,1773573052492,-6960.72,0.00040821,2]
[408409623,1773573052502,-6960.72,0.00040821,2]
[408409624,1773573052512,-6960.72,0.00040821,2]
[408409625,1773573052521,-181.29809895,0.00040821,2]
[408409626,1773573052530,-151.38160047,0.00040821,2]
[408409627,1773573052540,-6960.72,0.00040821,2]
[408409628,1773573052549,-6960.72,0.00040821,2]
[408409629,1773573052558,-6960.72,0.00040821,2]
[408409630,1773573052568,-6960.8065158,0.00040821,2]
[408409631,1773573052580,-1552.83,0.00040821,2]
[408409632,1773573052590,-1552.83,0.00040821,2]
[408409633,1773573052599,-1552.83,0.00040821,2]
[408409634,1773573052608,-1552.83,0.00040821,2]
[408409635,1773573052618,-1552.83,0.00040821,2]
[408409636,1773573052627,-161.96209711,0.00040821,2]
[408409637,1773573052637,-1552.83,0.00040821,2]
[408409638,1773573052646,-187.29519303,0.00040821,2]
[408409639,1773573052655,-1552.83,0.00040821,2]
[408409640,1773573052664,-1552.83,0.00040821,2]
[408409641,1773573052673,-1552.83,0.00040821,2]
[408409642,1773573052683,-1552.83,0.00040821,2]
[408409643,1773573052692,-1552.83,0.00040821,2]
[408409644,1773573052702,-33362.76,0.00040821,2]
[408409645,1773573052711,-1552.83,0.00040821,2]
[408409646,1773573052721,-33362.76,0.00040821,2]
[408409647,1773573052731,-191.38379934,0.00040821,2]
[408409648,1773573052740,-1552.83,0.00040821,2]
[408409649,1773573052749,-33362.76,0.00040821,2]
[408409650,1773573052759,-1552.83,0.00040821,2]
[408409651,1773573052769,-33362.76,0.00040821,2]
[408409652,1773573052779,-1552.83,0.00040821,2]
[408409653,1773573052788,-33362.76,0.00040821,2]
[408409654,1773573052798,-1552.83,0.00040821,2]
[408409655,1773573052807,-33362.76,0.00040821,2]
[408409656,1773573052816,-1552.83,0.00040821,2]
[408409657,1773573052826,-175.90441377,0.00040821,2]
[408409658,1773573052835,-33362.76,0.00040821,2]
[408409659,1773573052844,-1552.83,0.00040821,2]
[408409660,1773573052854,-33362.76,0.00040821,2]
[408409661,1773573052863,-1552.83,0.00040821,2]
[408409662,1773573052874,-33362.76,0.00040821,2]
[408409663,1773573052883,-1552.83,0.00040821,2]
[408409664,1773573052893,-315.30092312,0.00040821,2]
[408409665,1773573052903,-7749.07664016,0.00040821,2]
[408409666,1773573053086,-358.835,0.00040821,2]
[408409667,1773573053110,-373.58184969,0.00028157,2]
[408409668,1773573053122,-2090.41815031,0.00028157,2]
[408409669,1773573053131,-1361.5313212,0.00040821,2]
[408409670,1773573053214,-1000.01205384,0.00031157,2]
[408409671,1773573053296,-285.78898174,0.00031157,2]
[408409672,1773573053309,-299.269787,0.00031157,2]
[408409673,1773573053339,-610.77887769,0.00013425,2]
[408409674,1773573053578,-1803.31923949,0.00013425,2]
[408409675,1773573055156,10000.01,0.000116,2]
[408409676,1773573055179,10000.01,0.000116,2]
[408409679,1773573118743,249.84458592,0.000115,2]
[408409681,1773573187956,-300.0,0.00011599,2]
[408409682,1773573188013,-7238.76163945,0.000116,2]
[408409683,1773573188225,-10000.01,0.000116,2]
[408409684,1773573188327,-10000.01,0.000116,2]
[408409685,1773573188455,-10000.01,0.000116,2]
[408409686,1773573188590,-10000.01,0.000116,2]
[408409688,1773573193886,-10000.01,0.000116,2]
[408409689,1773573194042,-10000.01,0.000116,2]
[408409690,1773573194159,-10000.01,0.000116,2]
[408409691,1773573194340,-4284.24666055,0.000116,2]
[408409692,1773573194368,-431.5166789,0.000116,2]
[408409693,1773573194405,-568.4833211,0.000116,2]
[408409694,1773573194483,-10000.01,0.000116,2]
[408409696,1773573247510,438.832342,7.945e-05,2]
[408409699,1773573283965,217.63,0.00011179,2]
[408409701,1773573337885,-1200.0,0.00011554,2]
[408409702,1773573337911,-9094.0179535,0.00011555,2]
[408409703,1773573337936,-594.84159504,0.00011599,2]
[408409704,1773573337966,-500.0,0.00011599,2]
[408409705,1773573337996,-500.0,0.00011599,2]
[408409706,1773573338026,-500.0,0.00011599,2]
[408409707,1773573338058,-500.0,0.00011599,2]
[408409708,1773573338087,-500.0,0.00011599,2]
[408409709,1773573338119,-500.0,0.00011599,2]
[408409710,1773573338149,-500.0,0.00011599,2]
[408409711,1773573338175,-500.0,0.00011599,2]
[408409712,1773573338204,-500.0,0.00011599,2]
[408409713,1773573338235,-500.0,0.00011599,2]
[408409714,1773573338264,-500.0,0.00011599,2]
[408409715,1773573338292,-500.0,0.00011599,2]
[408409716,1773573338318,-500.0,0.00011599,2]
[408409717,1773573338346,-500.0,0.00011599,2]
[408409718,1773573338373,-500.0,0.00011599,2]
[408409719,1773573338405,-500.0,0.00011599,2]
[408409720,1773573338434,-500.0,0.00011599,2]
[408409721,1773573338462,-500.0,0.00011599,2]
[408409722,1773573338490,-500.0,0.00011599,2]
[408409723,1773573338518,-500.0,0.00011599,2]
[408409724,1773573338547,-500.0,0.00011599,2]
[408409725,1773573338575,-500.0,0.00011599,2]
[408409726,1773573338603,-500.0,0.00011599,2]
[408409727,1773573338633,-500.0,0.00011599,2]
[408409728,1773573338665,-500.0,0.00011599,2]
[408409729,1773573338696,-500.0,0.00011599,2]
[408409730,1773573338728,-617.46401209,0.00011599,2]
[408409731,1773573338948,-500.0,0.00011599,2]
[408409732,1773573338981,-500.0,0.00011599,2]
[408409733,1773573339011,-500.0,0.00011599,2]
[408409734,1773573339052,-500.0,0.00011599,2]
[408409735,1773573339090,-500.0,0.00011599,2]
[408409736,1773573339120,-248.29931031,0.00011599,2]
[408409737,1773573339150,-500.0,0.00011599,2]
[408409738,1773573339178,-500.0,0.00011599,2]
[408409739,1773573339207,-500.0,0.00011599,2]
[408409740,1773573339237,-500.0,0.00011599,2]
[408409741,1773573339264,-500.0,0.00011599,2]
[408409742,1773573339295,-500.0,0.00011599,2]
[408409743,1773573339325,-500.0,0.00011599,2]
[408409744,1773573339355,-250.0,0.00011599,2]
[408409745,1773573339382,-500.0,0.00011599,2]
[408409746,1773573339412,-500.0,0.00011599,2]
[408409747,1773573339440,-500.0,0.00011599,2]
[408409748,1773573339470,-500.0,0.00011599,2]
[408409749,1773573339500,-500.0,0.00011599,2]
[408409750,1773573339530,-500.0,0.00011599,2]
[408409751,1773573339561,-500.0,0.00011599,2]
[408409752,1773573339586,-300.84394839,0.00011599,2]
[408409753,1773573339611,-300.0,0.00011599,2]
[408409754,1773573339637,-50994.53318067,0.000116,2]
[408409757,1773573417753,2643.00951674,0.000115,2]
[408409762,1773573604789,4342.22,0.00011179,2]
[408409764,1773573633057,200.0,0.00011179,2]
[408409766,1773573650181,940.001,0.000115,2]
[408409767,1773573655467,200.0,0.000115,2]
[408409769,1773573728065,-930.42807738,0.00011527,2]
[408409770,1773573728150,-8139.15384524,0.00011527,2]
[408409771,1773573733876,-250.0,0.00011558,2]
[408409772,1773573733904,-245.0,0.00011588,2]
[408409773,1773573733932,-450.20209622,0.00011588,2]
[408409782,1773573924595,176.66,9.854e-05,2]
[408409783,1773573924787,176.66,0.00011086,2]
[408409785,1773573947941,5665.660166,0.0001149,2]
[408409787,1773573976641,-3866.20841259,0.00011548,2]
[408409788,1773573993733,-300.0,0.00011592,2]
[408409789,1773573993772,-1200.0,0.00011592,2]
[408409790,1773573993806,-300.0,0.00011592,2]
[408409792,1773574021204,300.0,0.00011592,2]
[408409793,1773574022202,153.25761505,0.00011548,2]
[408409794,1773574022963,300.0,0.00011592,2]
[408409795,1773574028770,5646.75238495,0.00011548,2]
[408409796,1773574028792,2289.13179729,0.00011548,2]
[408409797,1773574036693,846.0009,0.00011548,2]
[408409799,1773574081480,300.0,0.00011592,2]
[408409802,1773574141213,300.0,0.00011592,2]
[408409804,1773574201181,1200.0,0.00011592,2]
[408409805,1773574201418,300.0,0.00011592,2]
[408409806,1773574202705,150.0,0.00011592,2]
[408409808,1773574236998,-165.7677586,0.00011593,2]
[408409809,1773574237010,-500.0,0.00011593,2]
[408409810,1773574237020,-500.0,0.00011593,2]
[408409811,1773574237030,-500.0,0.00011593,2]
[408409812,1773574237040,-500.0,0.00011593,2]
[408409814,1773574237053,-500.0,0.00011593,2]
[408409816,1773574237062,-500.0,0.00011593,2]
[408409818,1773574237071,-500.0,0.00011593,2]
[408409820,1773574237080,-500.0,0.00011593,2]
[408409822,1773574237090,-500.0,0.00011593,2]
[408409824,1773574237100,-151.0,0.00011593,2]
[408409826,1773574237109,-151.0,0.00011593,2]
[408409827,1773574237118,-151.0,0.00011593,2]
[408409828,1773574237128,-151.0,0.00011593,2]
[408409829,1773574237137,-151.0,0.00011593,2]
[408409830,1773574237147,-151.0,0.00011593,2]
[408409831,1773574237156,-151.0,0.00011593,2]
[408409832,1773574237167,-151.0,0.00011593,2]
[408409833,1773574237178,-151.0,0.00011593,2]
[408409834,1773574237187,-151.0,0.00011593,2]
[408409835,1773574237196,-151.0,0.00011593,2]
[408409836,1773574237206,-151.0,0.00011593,2]
[408409837,1773574237216,-151.0,0.00011593,2]
[408409838,1773574237226,-151.0,0.00011593,2]
[408409839,1773574237236,-151.0,0.00011593,2]
[408409840,1773574237248,-151.0,0.00011593,2]
[408409841,1773574237259,-151.0,0.00011593,2]
[408409842,1773574237269,-151.0,0.00011593,2]
[408409843,1773574237278,-151.0,0.00011593,2]
[408409844,1773574237288,-151.0,0.00011593,2]
[408409845,1773574237297,-151.0,0.00011593,2]
[408409846,1773574237307,-151.0,0.00011593,2]
[408409847,1773574237316,-151.0,0.00011593,2]
[408409848,1773574237326,-151.0,0.00011593,2]
[408409849,1773574237339,-151.0,0.00011593,2]
[408409850,1773574237348,-151.0,0.00011593,2]
[408409851,1773574237358,-151.0,0.00011593,2]
[408409852,1773574237367,-151.0,0.00011593,2]
[408409853,1773574237378,-151.0,0.00011593,2]
[408409854,1773574237388,-151.0,0.00011593,2]
[408409855,1773574237398,-151.0,0.00011593,2]
[408409856,1773574237410,-267.37,0.00011593,2]
[408409857,1773574237419,-245.0,0.00011593,2]
[408409858,1773574237429,-189.22058879,0.00011599,2]
[408409859,1773574237438,-394.45592304,0.00011599,2]
[408409860,1773574237449,-416.38911653,0.00011599,2]
[408409861,1773574237458,-500.0,0.00011599,2]
[408409862,1773574237467,-292.48767402,0.00011599,2]
[408409863,1773574237477,-500.0,0.00011599,2]
[408409864,1773574237486,-500.0,0.00011599,2]
[408409865,1773574237495,-500.0,0.00011599,2]
[408409867,1773574237505,-500.0,0.00011599,2]
[408409868,1773574237514,-500.0,0.00011599,2]
[408409869,1773574237523,-500.0,0.00011599,2]
[408409870,1773574237532,-173.80951722,0.00011599,2]
[408409871,1773574237542,-500.0,0.00011599,2]
[408409872,1773574237551,-205.22405183,0.00011599,2]
[408409873,1773574237561,-227.07954368,0.00011648,2]
[408409874,1773574237571,-267.37,0.00011867,2]
[408409875,1773574237581,-485.23867235,0.00012,2]
[408409876,1773574237590,-1570.07174778,0.00012,2]
[408409877,1773574237600,-454.68314787,0.00012,2]
[408409878,1773574237609,-1881.3507659,0.00012,2]
[408409879,1773574237618,-500.0,0.00012,2]
[408409880,1773574237627,-4401.99,0.00012044,2]
[408409881,1773574237638,-359.02096,0.00012046,2]
[408409882,1773574237647,-36352.56,0.00012055,2]
[408409883,1773574237657,-160.93,0.00012072,2]
[408409884,1773574237666,-500.0,0.00012073,2]
[408409885,1773574237676,-502.48786936,0.00012136,2]
[408409886,1773574237685,-267.37,0.00012141,2]
[408409887,1773574237694,-176.66,0.00012318,2]
[408409888,1773574237704,-267.37,0.00012415,2]
[408409889,1773574237714,-559.58,0.00012556,2]
[408409890,1773574237723,-150.0,0.0001256,2]
[408409891,1773574237733,-150.0,0.00012658,2]
[408409892,1773574237742,-267.38,0.00012689,2]
[408409893,1773574237751,-250.0,0.00012703,2]
[408409894,1773574237761,-127702.55740402,0.00012736,2]
[408409895,1773574237771,-1680.0,0.00012751,2]
[408409896,1773574237955,-250.0,0.00012752,2]
[408409897,1773574237965,-250.0,0.00012752,2]
[408409898,1773574237975,-3426.9,0.00012803,2]
[408409899,1773574237985,-13682.15,0.00012893,2]
[408409900,1773574237995,-1624.93,0.00012893,2]
[408409901,1773574238004,-825.90188282,0.00013425,2]
[408409902,1773574238013,-176.66,0.0001355,2]
[408409903,1773574238022,-230.39638808,0.00013698,2]
[408409904,1773574238032,-2793.18,0.00013699,2]
[408409905,1773574238041,-405.85897198,0.00013699,2]
[408409906,1773574238050,-162.811078,0.00013742,7]
[408409907,1773574238059,-2351.0,0.00014026,2]
[408409908,1773574238068,-8179.97,0.00014195,2]
[408409909,1773574238079,-3208.56952307,0.00014197,2]
[408409910,1773574238088,-2793.18,0.00014384,2]
[408409911,1773574238098,-179.51048,0.0001452,7]
[408409912,1773574238107,-5497.54,0.00014614,2]
[408409913,1773574238116,-1263.96652252,0.00014625,2]
[408409914,1773574238127,-176.66,0.00014781,2]
[408409915,1773574238136,-209.28645946,0.00014899,2]
[408409916,1773574238145,-800.0,0.000149,5]
[408409917,1773574238154,-3866.20841252,0.00014946,2]
[408409918,1773574238164,-846.0009,0.00014946,2]
[408409919,1773574238173,-250.0,0.00015,2]
[408409920,1773574238182,-2793.18,0.00015068,2]
[408409921,1773574238191,-4258.86582318,0.00015101,2]
[408409922,1773574238200,-16335.33,0.00015182,2]
[408409923,1773574238209,-32099.29,0.00015248,2]
[408409924,1773574238218,-540.72,0.00015309,2]
[408409925,1773574238228,-4861.49,0.0001531,2]
[408409926,1773574238237,-250.0,0.00015318,2]
[408409927,1773574238246,-3292.0,0.00015429,2]
[408409928,1773574238255,-4342.22,0.0001565,2]
[408409929,1773574238264,-540.72,0.00015692,2]
[408409930,1773574238273,-2793.18,0.00015753,2]
[408409931,1773574238282,-300.3045422,0.000159,2]
[408409932,1773574238292,-150.0,0.000159,2]
[408409933,1773574238301,-171.70924483,0.000159,2]
[408409934,1773574238310,-150.0,0.00015966,2]
[408409935,1773574238319,-216.0,0.00016,2]
[408409936,1773574238328,-250.0,0.00016021,2]
[408409937,1773574238339,-540.72,0.00016075,2]
[408409938,1773574238350,-150.0,0.00016438,2]
[408409939,1773574238359,-2793.18,0.00016438,2]
[408409940,1773574238369,-540.72,0.00016457,2]
[408409941,1773574238379,-150.0,0.00016493,2]
[408409942,1773574238388,-150.0,0.00016548,2]
[408409943,1773574238397,-153.80287197,0.00016602,2]
[408409944,1773574238407,-201.94987361,0.00016726,2]
[408409945,1773574238417,-540.72,0.0001684,2]
[408409946,1773574238426,-4609.0,0.00016971,2]
[408409947,1773574238435,-300.0,0.00017,2]
[408409948,1773574238444,-518.0,0.00017,2]
[408409949,1773574238453,-1026.50121,0.00017178,7]
[408409950,1773574238462,-195.373294,0.00017178,7]
[408409951,1773574238471,-2527.80557392,0.00017894,3]
[408409952,1773574238480,-3866.20841252,0.00018344,2]
[408409953,1773574238489,-846.0009,0.00018344,2]
[408409954,1773574238499,-500.0,0.000186,2]
[408409955,1773574238508,-500.0,0.000186,2]
[408409956,1773574238516,-500.0,0.000186,2]
[408409957,1773574238526,-500.0,0.000186,2]
[408409958,1773574238535,-500.0,0.000186,2]
[408409959,1773574238545,-500.0,0.000186,2]